[Event "Titled Tuesday Blitz August 15 Late 2023"]
[White "laidfrq"]
[Black "KrokerGuy"]
[WhiteElo "2232"]
[BlackElo "2448"]
[Result "1-0"]
[Round "2"]
[TimeControl "180+1"]
[Date "2023.08.15"]
[WhiteClock "0:00:36"]
[BlackClock "0:00:00"]
[Board "151"]

1. e4 {[%clk 0:03:00]}  e5 {[%clk 0:02:59]} 2. Nf3 {[%clk 0:03:00]}  Nc6 {[%clk 0:03:00]} 3. Bb5 {[%clk 0:03:00]}  a6 {[%clk 0:03:00]} 4. Ba4 {[%clk 0:03:00]}  Nf6 {[%clk 0:03:01]} 5. O-O {[%clk 0:02:59]}  Be7 {[%clk 0:03:02]} 6. Re1 {[%clk 0:02:59]}  b5 {[%clk 0:03:02]} 7. Bb3 {[%clk 0:02:58]}  d6 {[%clk 0:03:03]} 8. c3 {[%clk 0:02:58]}  O-O {[%clk 0:03:04]} 9. h3 {[%clk 0:02:57]}  Nb8 {[%clk 0:03:05]} 10. d4 {[%clk 0:02:57]}  Nbd7 {[%clk 0:03:05]} 11. Nbd2 {[%clk 0:02:52]}  Bb7 {[%clk 0:03:06]} 12. a4 {[%clk 0:02:48]}  Re8 {[%clk 0:03:05]} 13. Ng5 {[%clk 0:02:46]}  Rf8 {[%clk 0:02:45]} 14. Ngf3 {[%clk 0:02:45]}  c5 {[%clk 0:02:34]} 15. d5 {[%clk 0:02:42]}  c4 {[%clk 0:02:34]} 16. Bc2 {[%clk 0:02:42]}  Nc5 {[%clk 0:02:22]} 17. Nf1 {[%clk 0:02:40]}  Nfd7 {[%clk 0:02:16]} 18. Ng3 {[%clk 0:02:32]}  g6 {[%clk 0:02:15]} 19. Bh6 {[%clk 0:02:25]}  Re8 {[%clk 0:02:14]} 20. Qd2 {[%clk 0:02:22]}  Nb6 {[%clk 0:02:00]} 21. a5 {[%clk 0:02:15]}  Nba4 {[%clk 0:01:50]} 22. Bxa4 {[%clk 0:02:09]}  Nxa4 {[%clk 0:01:28]} 23. Nh2 {[%clk 0:01:52]}  Qxa5 {[%clk 0:01:15]} 24. Ng4 {[%clk 0:01:48]}  Qc7 {[%clk 0:01:10]} 25. Bg5 {[%clk 0:01:37]}  Nc5 {[%clk 0:01:05]} 26. Bxe7 {[%clk 0:01:24]}  Qxe7 {[%clk 0:01:06]} 27. Qh6 {[%clk 0:01:22]}  Nd3 {[%clk 0:01:00]} 28. Nh5 {[%clk 0:01:21]}  f5 {[%clk 0:00:41]} 29. Ngf6+ {[%clk 0:01:17]}  Kh8 {[%clk 0:00:41]} 30. Nxe8 {[%clk 0:01:07]}  Rxe8 {[%clk 0:00:36]} 31. exf5 {[%clk 0:00:56]}  gxh5 {[%clk 0:00:31]} 32. Re3 {[%clk 0:00:48]}  Rg8 {[%clk 0:00:28]} 33. Rg3 {[%clk 0:00:43]}  Rxg3 {[%clk 0:00:23]} 34. fxg3 {[%clk 0:00:44]}  Bxd5 {[%clk 0:00:20]} 35. Rxa6 {[%clk 0:00:43]}  e4 {[%clk 0:00:06]} 36. Rxd6 {[%clk 0:00:41]}  e3 {[%clk 0:00:04]} 37. f6 {[%clk 0:00:36]}  Qf7 {[%clk 0:00:00]} 38. Rd8+ {[%clk 0:00:36]} 1-0


[Site "https://www.chess.com"]

[Event "Titled Tuesday Blitz August 15 Late 2023"]
[White "Sarkar, Justin"]
[Black "Santos, Marcus Vinicius Moreira"]
[WhiteFideId "2010011"]
[BlackFideId "2103125"]
[WhiteElo "2231"]
[BlackElo "2448"]
[Result "1/2-1/2"]
[Round "2"]
[TimeControl "180+1"]
[Date "2023.08.15"]
[WhiteClock "0:00:10"]
[BlackClock "0:00:42"]
[Board "152"]

1. d4 {[%clk 0:02:55]}  g6 {[%clk 0:02:57]} 2. g3 {[%clk 0:02:49]}  f5 {[%clk 0:02:56]} 3. Bg2 {[%clk 0:02:46]}  Nf6 {[%clk 0:02:57]} 4. c4 {[%clk 0:02:41]}  Bg7 {[%clk 0:02:56]} 5. Nc3 {[%clk 0:02:38]}  O-O {[%clk 0:02:55]} 6. Nf3 {[%clk 0:02:38]}  d6 {[%clk 0:02:55]} 7. O-O {[%clk 0:02:37]}  Qe8 {[%clk 0:02:51]} 8. Re1 {[%clk 0:02:28]}  e5 {[%clk 0:02:47]} 9. dxe5 {[%clk 0:02:26]}  dxe5 {[%clk 0:02:47]} 10. e4 {[%clk 0:02:26]}  f4 {[%clk 0:02:48]} 11. gxf4 {[%clk 0:02:21]}  Nh5 {[%clk 0:02:47]} 12. fxe5 {[%clk 0:01:51]}  Nc6 {[%clk 0:02:45]} 13. Nd5 {[%clk 0:01:49]}  Qf7 {[%clk 0:02:36]} 14. Qc2 {[%clk 0:01:40]}  Nxe5 {[%clk 0:02:16]} 15. Nxe5 {[%clk 0:01:39]}  Bxe5 {[%clk 0:02:17]} 16. Bh6 {[%clk 0:01:38]}  Bg7 {[%clk 0:02:07]} 17. Bxg7 {[%clk 0:01:36]}  Qxg7 {[%clk 0:02:08]} 18. e5 {[%clk 0:01:21]}  c6 {[%clk 0:02:07]} 19. Nf6+ {[%clk 0:01:11]}  Nxf6 {[%clk 0:02:05]} 20. exf6 {[%clk 0:01:11]}  Qxf6 {[%clk 0:02:04]} 21. Rad1 {[%clk 0:00:59]}  Bf5 {[%clk 0:01:57]} 22. Qe2 {[%clk 0:00:54]}  Rf7 {[%clk 0:01:50]} 23. Qe5 {[%clk 0:00:51]}  Raf8 {[%clk 0:01:45]} 24. Qxf6 {[%clk 0:00:46]}  Rxf6 {[%clk 0:01:45]} 25. Re7 {[%clk 0:00:45]}  R6f7 {[%clk 0:01:44]} 26. Rxf7 {[%clk 0:00:43]}  Rxf7 {[%clk 0:01:43]} 27. Rd8+ {[%clk 0:00:39]}  Rf8 {[%clk 0:01:40]} 28. Rxf8+ {[%clk 0:00:29]}  Kxf8 {[%clk 0:01:41]} 29. c5 {[%clk 0:00:21]}  Ke7 {[%clk 0:01:32]} 30. f4 {[%clk 0:00:20]}  Bb1 {[%clk 0:01:29]} 31. a3 {[%clk 0:00:19]}  Ke6 {[%clk 0:01:29]} 32. Kf2 {[%clk 0:00:18]}  Bf5 {[%clk 0:01:17]} 33. Ke3 {[%clk 0:00:18]}  h6 {[%clk 0:01:15]} 34. h4 {[%clk 0:00:17]}  Kf6 {[%clk 0:01:10]} 35. Kd4 {[%clk 0:00:17]}  Be6 {[%clk 0:00:57]} 36. b4 {[%clk 0:00:17]}  Kf5 {[%clk 0:00:46]} 37. Bh3+ {[%clk 0:00:14]}  Kf6 {[%clk 0:00:46]} 38. Bg2 {[%clk 0:00:10]}  Kf5 {[%clk 0:00:42]} 39. Bh3+ {[%clk 0:00:10]}  Kf6 {[%clk 0:00:42]} 40. Bg2 {[%clk 0:00:10]} 1/2-1/2


[Site "https://www.chess.com"]

[Event "Titled Tuesday Blitz August 15 Late 2023"]
[White "Kalaiyalahan, Akshaya"]
[Black "Kubatko, Ivan"]
[WhiteFideId "422894"]
[BlackFideId "24111473"]
[WhiteElo "2231"]
[BlackElo "2448"]
[Result "1-0"]
[Round "2"]
[TimeControl "180+1"]
[Date "2023.08.15"]
[WhiteClock "0:00:18"]
[BlackClock "0:00:00"]
[Board "153"]

1. b3 {[%clk 0:03:00]}  d5 {[%clk 0:02:59]} 2. Bb2 {[%clk 0:02:59]}  c5 {[%clk 0:02:59]} 3. e3 {[%clk 0:02:54]}  Nf6 {[%clk 0:02:57]} 4. Nf3 {[%clk 0:02:53]}  a6 {[%clk 0:02:57]} 5. d4 {[%clk 0:02:47]}  Nc6 {[%clk 0:02:56]} 6. Nbd2 {[%clk 0:02:46]}  Bg4 {[%clk 0:02:56]} 7. Be2 {[%clk 0:02:45]}  e6 {[%clk 0:02:56]} 8. O-O {[%clk 0:02:45]}  Bd6 {[%clk 0:02:55]} 9. h3 {[%clk 0:02:45]}  Bh5 {[%clk 0:02:55]} 10. Ne5 {[%clk 0:02:45]}  Bxe2 {[%clk 0:02:45]} 11. Qxe2 {[%clk 0:02:45]}  O-O {[%clk 0:02:42]} 12. c4 {[%clk 0:02:45]}  cxd4 {[%clk 0:02:30]} 13. exd4 {[%clk 0:02:44]}  Rc8 {[%clk 0:02:28]} 14. Rac1 {[%clk 0:02:28]}  Re8 {[%clk 0:02:26]} 15. Rfd1 {[%clk 0:02:27]}  dxc4 {[%clk 0:02:03]} 16. bxc4 {[%clk 0:02:26]}  Qa5 {[%clk 0:01:30]} 17. Bc3 {[%clk 0:01:53]}  Qxa2 {[%clk 0:01:22]} 18. g4 {[%clk 0:01:43]}  Bxe5 {[%clk 0:00:17]} 19. dxe5 {[%clk 0:01:42]}  Nd7 {[%clk 0:00:17]} 20. Qe4 {[%clk 0:01:12]}  Nc5 {[%clk 0:00:16]} 21. Qf3 {[%clk 0:01:05]}  Nb3 {[%clk 0:00:15]} 22. Nxb3 {[%clk 0:00:52]}  Qxb3 {[%clk 0:00:15]} 23. Rb1 {[%clk 0:00:51]}  Qxc4 {[%clk 0:00:15]} 24. Rxb7 {[%clk 0:00:51]}  Re7 {[%clk 0:00:06]} 25. Rb6 {[%clk 0:00:20]}  Qc5 {[%clk 0:00:04]} 26. Rxc6 {[%clk 0:00:19]}  Qxc6 {[%clk 0:00:02]} 27. Qxc6 {[%clk 0:00:19]}  Rxc6 {[%clk 0:00:00]} 28. Rd8+ {[%clk 0:00:18]} 1-0


[Site "https://www.chess.com"]

[Event "Titled Tuesday Blitz August 15 Late 2023"]
[White "Tsyhanchuk, Stanislav"]
[Black "Alexikov, Alexander"]
[WhiteFideId "13505130"]
[BlackFideId "14103958"]
[WhiteElo "2443"]
[BlackElo "2225"]
[Result "1-0"]
[Round "2"]
[TimeControl "180+1"]
[Date "2023.08.15"]
[WhiteClock "0:01:30"]
[BlackClock "0:00:10"]
[Board "156"]

1. c4 {[%clk 0:03:00]}  Nf6 {[%clk 0:02:58]} 2. Nc3 {[%clk 0:03:00]}  g6 {[%clk 0:02:58]} 3. d4 {[%clk 0:03:00]}  Bg7 {[%clk 0:02:57]} 4. e4 {[%clk 0:03:01]}  d6 {[%clk 0:02:57]} 5. f4 {[%clk 0:03:01]}  O-O {[%clk 0:02:56]} 6. Nf3 {[%clk 0:03:02]}  c6 {[%clk 0:02:56]} 7. e5 {[%clk 0:02:51]}  Ne8 {[%clk 0:02:54]} 8. Bd3 {[%clk 0:02:45]}  a6 {[%clk 0:02:52]} 9. O-O {[%clk 0:02:43]}  b5 {[%clk 0:02:51]} 10. cxb5 {[%clk 0:02:43]}  axb5 {[%clk 0:02:49]} 11. Be3 {[%clk 0:02:36]}  Nc7 {[%clk 0:02:44]} 12. a3 {[%clk 0:02:31]}  Nd7 {[%clk 0:02:36]} 13. Be4 {[%clk 0:02:19]}  d5 {[%clk 0:02:25]} 14. Bc2 {[%clk 0:02:13]}  Nb6 {[%clk 0:02:24]} 15. b3 {[%clk 0:02:10]}  Bg4 {[%clk 0:02:07]} 16. f5 {[%clk 0:02:07]}  gxf5 {[%clk 0:01:53]} 17. h3 {[%clk 0:02:07]}  Bxf3 {[%clk 0:01:52]} 18. Qxf3 {[%clk 0:02:08]}  e6 {[%clk 0:01:51]} 19. Qg3 {[%clk 0:01:58]}  Kh8 {[%clk 0:01:48]} 20. Bg5 {[%clk 0:01:49]}  Qe8 {[%clk 0:01:35]} 21. Qh4 {[%clk 0:01:48]}  Rg8 {[%clk 0:01:32]} 22. Rxf5 {[%clk 0:01:39]}  Bf8 {[%clk 0:00:24]} 23. Bf6+ {[%clk 0:01:34]}  Rg7 {[%clk 0:00:10]} 24. Rh5 {[%clk 0:01:30]} 1-0


[Site "https://www.chess.com"]

[Event "Titled Tuesday Blitz August 15 Late 2023"]
[White "KSho99"]
[Black "ExchangeAB"]
[WhiteElo "2222"]
[BlackElo "2442"]
[Result "0-1"]
[Round "2"]
[TimeControl "180+1"]
[Date "2023.08.15"]
[WhiteClock "0:00:14"]
[BlackClock "0:01:17"]
[Board "157"]

1. Nf3 {[%clk 0:03:00]}  d5 {[%clk 0:02:59]} 2. e3 {[%clk 0:03:00]}  Nf6 {[%clk 0:02:59]} 3. b3 {[%clk 0:03:00]}  Bf5 {[%clk 0:02:58]} 4. Bb2 {[%clk 0:02:59]}  h6 {[%clk 0:02:59]} 5. c4 {[%clk 0:02:53]}  c6 {[%clk 0:02:58]} 6. Nc3 {[%clk 0:02:51]}  e6 {[%clk 0:02:59]} 7. h3 {[%clk 0:02:48]}  Nbd7 {[%clk 0:02:58]} 8. Be2 {[%clk 0:02:45]}  Bd6 {[%clk 0:02:57]} 9. O-O {[%clk 0:02:44]}  O-O {[%clk 0:02:57]} 10. d3 {[%clk 0:02:44]}  Bh7 {[%clk 0:02:57]} 11. Re1 {[%clk 0:02:41]}  e5 {[%clk 0:02:52]} 12. Rc1 {[%clk 0:02:15]}  a6 {[%clk 0:02:43]} 13. Bf1 {[%clk 0:02:02]}  Qe7 {[%clk 0:02:39]} 14. e4 {[%clk 0:01:48]}  d4 {[%clk 0:02:38]} 15. Ne2 {[%clk 0:01:47]}  Bb4 {[%clk 0:02:37]} 16. Nd2 {[%clk 0:01:46]}  Rfc8 {[%clk 0:02:35]} 17. Rc2 {[%clk 0:01:39]}  b5 {[%clk 0:02:32]} 18. f4 {[%clk 0:01:33]}  a5 {[%clk 0:02:27]} 19. fxe5 {[%clk 0:01:18]}  Nxe5 {[%clk 0:02:28]} 20. Nxd4 {[%clk 0:01:18]}  Bc5 {[%clk 0:02:22]} 21. Kh1 {[%clk 0:01:09]}  Rd8 {[%clk 0:02:22]} 22. Nf5 {[%clk 0:00:52]}  Qe8 {[%clk 0:01:24]} 23. d4 {[%clk 0:00:47]}  Bxf5 {[%clk 0:01:18]} 24. dxe5 {[%clk 0:00:35]}  Nxe4 {[%clk 0:01:17]} 25. cxb5 {[%clk 0:00:14]}  Nf2+ {[%clk 0:01:17]} 0-1


[Site "https://www.chess.com"]

[Event "Titled Tuesday Blitz August 15 Late 2023"]
[White "The_Straightforward_Rook"]
[Black "Tqebuchava, Zurab"]
[BlackFideId "13601113"]
[WhiteElo "2432"]
[BlackElo "2174"]
[Result "1/2-1/2"]
[Round "2"]
[TimeControl "180+1"]
[Date "2023.08.15"]
[WhiteClock "0:00:33"]
[BlackClock "0:00:12"]
[Board "163"]

1. d4 {[%clk 0:03:00]}  g6 {[%clk 0:02:59]} 2. e4 {[%clk 0:03:00]}  Bg7 {[%clk 0:02:59]} 3. Nf3 {[%clk 0:03:00]}  d6 {[%clk 0:02:59]} 4. Bd3 {[%clk 0:03:00]}  Bg4 {[%clk 0:02:57]} 5. c3 {[%clk 0:02:57]}  Nc6 {[%clk 0:02:53]} 6. Nbd2 {[%clk 0:02:57]}  Nf6 {[%clk 0:02:45]} 7. h3 {[%clk 0:02:57]}  Bxf3 {[%clk 0:02:44]} 8. Nxf3 {[%clk 0:02:57]}  O-O {[%clk 0:02:40]} 9. O-O {[%clk 0:02:57]}  e5 {[%clk 0:02:37]} 10. Re1 {[%clk 0:02:54]}  h6 {[%clk 0:02:31]} 11. Be3 {[%clk 0:02:48]}  Re8 {[%clk 0:02:24]} 12. d5 {[%clk 0:02:48]}  Ne7 {[%clk 0:02:23]} 13. Nh2 {[%clk 0:02:43]}  Nh5 {[%clk 0:02:10]} 14. Qd2 {[%clk 0:02:42]}  Kh7 {[%clk 0:02:02]} 15. Ng4 {[%clk 0:02:41]}  Ng8 {[%clk 0:02:00]} 16. f3 {[%clk 0:02:38]}  Qh4 {[%clk 0:01:41]} 17. Qf2 {[%clk 0:02:34]}  Qxf2+ {[%clk 0:01:38]} 18. Nxf2 {[%clk 0:02:35]}  Nf4 {[%clk 0:01:33]} 19. Bf1 {[%clk 0:02:35]}  g5 {[%clk 0:01:29]} 20. g3 {[%clk 0:02:33]}  Ng6 {[%clk 0:01:29]} 21. Bd3 {[%clk 0:02:26]}  h5 {[%clk 0:01:26]} 22. Bxg5 {[%clk 0:02:23]}  Bh6 {[%clk 0:01:22]} 23. h4 {[%clk 0:02:18]}  f6 {[%clk 0:01:18]} 24. Bxh6 {[%clk 0:02:15]}  Nxh6 {[%clk 0:01:18]} 25. Kh2 {[%clk 0:02:13]}  Rg8 {[%clk 0:01:16]} 26. Rg1 {[%clk 0:02:12]}  Rg7 {[%clk 0:01:15]} 27. Rg2 {[%clk 0:02:12]}  Rag8 {[%clk 0:01:14]} 28. a4 {[%clk 0:02:11]}  Nxh4 {[%clk 0:01:11]} 29. g4 {[%clk 0:01:32]}  Nxg2 {[%clk 0:01:07]} 30. Kxg2 {[%clk 0:01:32]}  hxg4 {[%clk 0:00:54]} 31. Rh1 {[%clk 0:01:26]}  gxf3+ {[%clk 0:00:52]} 32. Kxf3 {[%clk 0:01:27]}  Rg3+ {[%clk 0:00:51]} 33. Ke2 {[%clk 0:01:26]}  Rg2 {[%clk 0:00:47]} 34. Bb5 {[%clk 0:01:17]}  Kg7 {[%clk 0:00:44]} 35. Bd7 {[%clk 0:01:18]}  Nf7 {[%clk 0:00:40]} 36. Bh3 {[%clk 0:01:15]}  Rg5 {[%clk 0:00:38]} 37. Bf5 {[%clk 0:01:13]}  Rh8 {[%clk 0:00:38]} 38. Rf1 {[%clk 0:01:00]}  Rh2 {[%clk 0:00:37]} 39. b4 {[%clk 0:00:56]}  Nh6 {[%clk 0:00:36]} 40. Be6 {[%clk 0:00:56]}  Ng4 {[%clk 0:00:32]} 41. Bxg4 {[%clk 0:00:55]}  Rxg4 {[%clk 0:00:32]} 42. Kf3 {[%clk 0:00:52]}  Rf4+ {[%clk 0:00:28]} 43. Ke3 {[%clk 0:00:52]}  Rh3+ {[%clk 0:00:23]} 44. Kd2 {[%clk 0:00:50]}  Rhf3 {[%clk 0:00:22]} 45. Rg1+ {[%clk 0:00:47]}  Kf7 {[%clk 0:00:21]} 46. Ng4 {[%clk 0:00:42]}  Rxe4 {[%clk 0:00:16]} 47. Nh6+ {[%clk 0:00:42]}  Kf8 {[%clk 0:00:15]} 48. Rg8+ {[%clk 0:00:42]}  Ke7 {[%clk 0:00:15]} 49. Rg7+ {[%clk 0:00:42]}  Kf8 {[%clk 0:00:14]} 50. Rg8+ {[%clk 0:00:41]}  Ke7 {[%clk 0:00:14]} 51. Rg7+ {[%clk 0:00:40]}  Kd8 {[%clk 0:00:14]} 52. Nf7+ {[%clk 0:00:36]}  Ke8 {[%clk 0:00:12]} 53. Nh6 {[%clk 0:00:34]}  Rh4 {[%clk 0:00:12]} 54. Rg8+ {[%clk 0:00:33]}  Kd7 {[%clk 0:00:11]} 55. Rg7+ {[%clk 0:00:33]}  Kd8 {[%clk 0:00:11]} 56. Rg8+ {[%clk 0:00:32]}  Ke7 {[%clk 0:00:11]} 57. Rg7+ {[%clk 0:00:32]}  Kd8 {[%clk 0:00:12]} 58. Rg8+ {[%clk 0:00:32]}  Ke7 {[%clk 0:00:12]} 59. Rg7+ {[%clk 0:00:33]}  Kd8 {[%clk 0:00:12]} 1/2-1/2


[Site "https://www.chess.com"]

[Event "Titled Tuesday Blitz August 15 Late 2023"]
[White "Cueto, Jonny"]
[Black "financieru"]
[WhiteFideId "3300145"]
[WhiteElo "2174"]
[BlackElo "2430"]
[Result "0-1"]
[Round "2"]
[TimeControl "180+1"]
[Date "2023.08.15"]
[WhiteClock "0:00:00"]
[BlackClock "0:00:18"]
[Board "164"]

1. d4 {[%clk 0:03:00]}  Nf6 {[%clk 0:03:00]} 2. Bf4 {[%clk 0:03:01]}  g6 {[%clk 0:03:00]} 3. Nc3 {[%clk 0:03:00]}  d5 {[%clk 0:03:01]} 4. e3 {[%clk 0:03:01]}  Bg7 {[%clk 0:03:01]} 5. h4 {[%clk 0:03:01]}  h5 {[%clk 0:03:02]} 6. Be2 {[%clk 0:02:59]}  O-O {[%clk 0:03:01]} 7. Nf3 {[%clk 0:02:59]}  c5 {[%clk 0:03:01]} 8. Nb5 {[%clk 0:02:59]}  Na6 {[%clk 0:02:59]} 9. c3 {[%clk 0:02:59]}  Re8 {[%clk 0:02:56]} 10. O-O {[%clk 0:02:58]}  Nd7 {[%clk 0:02:53]} 11. Qd2 {[%clk 0:02:43]}  e5 {[%clk 0:02:46]} 12. dxe5 {[%clk 0:02:43]}  Nxe5 {[%clk 0:02:47]} 13. Rfd1 {[%clk 0:02:41]}  Bg4 {[%clk 0:01:51]} 14. Nxe5 {[%clk 0:02:28]}  Bxe5 {[%clk 0:01:48]} 15. Bxe5 {[%clk 0:02:23]}  Rxe5 {[%clk 0:01:49]} 16. Bxg4 {[%clk 0:02:24]}  hxg4 {[%clk 0:01:50]} 17. g3 {[%clk 0:02:25]}  Nc7 {[%clk 0:01:42]} 18. Nxc7 {[%clk 0:02:19]}  Qxc7 {[%clk 0:01:43]} 19. Qe2 {[%clk 0:02:17]}  f5 {[%clk 0:01:40]} 20. Qb5 {[%clk 0:02:09]}  Kg7 {[%clk 0:01:38]} 21. Rd2 {[%clk 0:02:05]}  a6 {[%clk 0:01:39]} 22. Qb3 {[%clk 0:02:05]}  Qc6 {[%clk 0:01:33]} 23. Rad1 {[%clk 0:02:04]}  Rd8 {[%clk 0:01:25]} 24. c4 {[%clk 0:01:26]}  d4 {[%clk 0:01:24]} 25. exd4 {[%clk 0:01:19]}  cxd4 {[%clk 0:01:25]} 26. Qa3 {[%clk 0:00:57]}  g5 {[%clk 0:01:19]} 27. hxg5 {[%clk 0:00:56]}  Rh8 {[%clk 0:01:15]} 28. f3 {[%clk 0:00:48]}  Re3 {[%clk 0:01:07]} 29. Qa5 {[%clk 0:00:23]}  Rxf3 {[%clk 0:01:03]} 30. Qe5+ {[%clk 0:00:22]}  Kg6 {[%clk 0:00:33]} 31. Qf6+ {[%clk 0:00:03]}  Qxf6 {[%clk 0:00:32]} 32. gxf6 {[%clk 0:00:03]}  Rxg3+ {[%clk 0:00:32]} 33. Kf2 {[%clk 0:00:03]}  Rf3+ {[%clk 0:00:33]} 34. Kg2 {[%clk 0:00:03]}  Kxf6 {[%clk 0:00:32]} 35. Rxd4 {[%clk 0:00:03]}  Re8 {[%clk 0:00:32]} 36. Rd6+ {[%clk 0:00:04]}  Kg5 {[%clk 0:00:33]} 37. R1d2 {[%clk 0:00:03]}  Re1 {[%clk 0:00:32]} 38. Rb6 {[%clk 0:00:03]}  Ree3 {[%clk 0:00:30]} 39. Rxb7 {[%clk 0:00:03]}  Rg3+ {[%clk 0:00:30]} 40. Kh2 {[%clk 0:00:03]}  Rh3+ {[%clk 0:00:30]} 41. Kg2 {[%clk 0:00:03]}  Reg3+ {[%clk 0:00:30]} 42. Kf2 {[%clk 0:00:04]}  f4 {[%clk 0:00:31]} 43. Rd5+ {[%clk 0:00:03]}  Kf6 {[%clk 0:00:29]} 44. Rb6+ {[%clk 0:00:03]}  Ke7 {[%clk 0:00:30]} 45. Re5+ {[%clk 0:00:04]}  Kd7 {[%clk 0:00:30]} 46. Rd5+ {[%clk 0:00:04]}  Kc7 {[%clk 0:00:30]} 47. Rg6 {[%clk 0:00:05]}  Rh2+ {[%clk 0:00:29]} 48. Kf1 {[%clk 0:00:04]}  Rf3+ {[%clk 0:00:29]} 49. Kg1 {[%clk 0:00:04]}  Rh7 {[%clk 0:00:30]} 50. Rc5+ {[%clk 0:00:03]}  Kd7 {[%clk 0:00:29]} 51. Rxg4 {[%clk 0:00:03]}  Re7 {[%clk 0:00:28]} 52. Rd5+ {[%clk 0:00:03]}  Kc6 {[%clk 0:00:28]} 53. Rd2 {[%clk 0:00:03]}  Kc5 {[%clk 0:00:23]} 54. b3 {[%clk 0:00:03]}  Kb4 {[%clk 0:00:23]} 55. Rg5 {[%clk 0:00:01]}  Kc3 {[%clk 0:00:22]} 56. Rgd5 {[%clk 0:00:01]}  Rfe3 {[%clk 0:00:20]} 57. Kf2 {[%clk 0:00:01]}  Rh7 {[%clk 0:00:17]} 58. Rd8 {[%clk 0:00:01]}  Rh2+ {[%clk 0:00:17]} 59. Kg1 {[%clk 0:00:02]}  Rxd2 {[%clk 0:00:17]} 60. Rxd2 {[%clk 0:00:00]}  Kxd2 {[%clk 0:00:18]} 0-1


[Site "https://www.chess.com"]

[Event "Titled Tuesday Blitz August 15 Late 2023"]
[White "Quispe Santacruz, Javier"]
[Black "FuenfgegenWilly"]
[WhiteFideId "3800920"]
[WhiteElo "2143"]
[BlackElo "2424"]
[Result "1-0"]
[Round "2"]
[TimeControl "180+1"]
[Date "2023.08.15"]
[WhiteClock "0:00:19"]
[BlackClock "0:00:05"]
[Board "169"]

1. d4 {[%clk 0:02:55]}  d5 {[%clk 0:02:59]} 2. c4 {[%clk 0:02:54]}  e5 {[%clk 0:02:58]} 3. dxe5 {[%clk 0:02:52]}  d4 {[%clk 0:02:59]} 4. Nf3 {[%clk 0:02:52]}  Nc6 {[%clk 0:03:00]} 5. a3 {[%clk 0:02:53]}  Nge7 {[%clk 0:02:59]} 6. b4 {[%clk 0:02:51]}  Ng6 {[%clk 0:02:59]} 7. Bb2 {[%clk 0:02:51]}  Ncxe5 {[%clk 0:02:59]} 8. Nxe5 {[%clk 0:02:11]}  Nxe5 {[%clk 0:02:59]} 9. Qxd4 {[%clk 0:02:10]}  Qxd4 {[%clk 0:02:57]} 10. Bxd4 {[%clk 0:02:11]}  Nxc4 {[%clk 0:02:58]} 11. e4 {[%clk 0:02:09]}  Be6 {[%clk 0:02:54]} 12. f4 {[%clk 0:02:07]}  f6 {[%clk 0:02:52]} 13. Nc3 {[%clk 0:02:02]}  a5 {[%clk 0:02:47]} 14. Nd5 {[%clk 0:01:46]}  Bxd5 {[%clk 0:02:43]} 15. exd5 {[%clk 0:01:46]}  Nxa3 {[%clk 0:02:43]} 16. Rxa3 {[%clk 0:01:33]}  Bxb4+ {[%clk 0:02:41]} 17. Rc3 {[%clk 0:01:34]}  Bxc3+ {[%clk 0:02:42]} 18. Bxc3 {[%clk 0:01:34]}  O-O {[%clk 0:02:24]} 19. Bc4 {[%clk 0:01:31]}  Rfe8+ {[%clk 0:02:23]} 20. Kf2 {[%clk 0:01:29]}  Kh8 {[%clk 0:02:19]} 21. Rb1 {[%clk 0:01:24]}  b6 {[%clk 0:02:17]} 22. Bb5 {[%clk 0:01:24]}  Re4 {[%clk 0:02:15]} 23. g3 {[%clk 0:01:20]}  h5 {[%clk 0:02:03]} 24. d6 {[%clk 0:01:16]}  cxd6 {[%clk 0:01:07]} 25. Bc6 {[%clk 0:01:12]}  Rc4 {[%clk 0:01:06]} 26. Bxa8 {[%clk 0:01:11]}  Rxc3 {[%clk 0:01:07]} 27. Rxb6 {[%clk 0:01:12]}  Rc2+ {[%clk 0:01:07]} 28. Kf3 {[%clk 0:00:50]}  Rxh2 {[%clk 0:00:59]} 29. Be4 {[%clk 0:00:49]}  g5 {[%clk 0:00:53]} 30. fxg5 {[%clk 0:00:47]}  fxg5 {[%clk 0:00:54]} 31. Rxd6 {[%clk 0:00:46]}  a4 {[%clk 0:00:48]} 32. Ra6 {[%clk 0:00:44]}  Ra2 {[%clk 0:00:47]} 33. Bc6 {[%clk 0:00:40]}  a3 {[%clk 0:00:43]} 34. Ke4 {[%clk 0:00:40]}  Rg2 {[%clk 0:00:34]} 35. Rxa3 {[%clk 0:00:38]}  h4 {[%clk 0:00:34]} 36. Kf5 {[%clk 0:00:35]}  Rxg3 {[%clk 0:00:31]} 37. Ra7 {[%clk 0:00:26]}  Rc3 {[%clk 0:00:26]} 38. Bd5 {[%clk 0:00:22]}  h3 {[%clk 0:00:16]} 39. Kg6 {[%clk 0:00:22]}  Rc8 {[%clk 0:00:05]} 40. Rh7# {[%clk 0:00:19]} 1-0


[Site "https://www.chess.com"]

[Event "Titled Tuesday Blitz August 15 Late 2023"]
[White "Vila Dupla, Aurelio"]
[Black "Farmani Anosheh, Armin"]
[WhiteFideId "2203383"]
[BlackFideId "24613240"]
[WhiteElo "2121"]
[BlackElo "2422"]
[Result "0-1"]
[Round "2"]
[TimeControl "180+1"]
[Date "2023.08.15"]
[WhiteClock "0:00:00"]
[BlackClock "0:00:02"]
[Board "171"]

1. Nf3 {[%clk 0:03:00]}  c5 {[%clk 0:02:59]} 2. c4 {[%clk 0:03:00]}  Nc6 {[%clk 0:02:58]} 3. Nc3 {[%clk 0:02:59]}  Nf6 {[%clk 0:02:31]} 4. d4 {[%clk 0:02:58]}  cxd4 {[%clk 0:02:30]} 5. Nxd4 {[%clk 0:02:59]}  e6 {[%clk 0:02:30]} 6. a3 {[%clk 0:02:57]}  Qb6 {[%clk 0:02:30]} 7. e3 {[%clk 0:02:54]}  a6 {[%clk 0:02:27]} 8. Be2 {[%clk 0:02:48]}  Be7 {[%clk 0:02:27]} 9. O-O {[%clk 0:02:47]}  O-O {[%clk 0:02:27]} 10. b4 {[%clk 0:02:45]}  d5 {[%clk 0:02:12]} 11. cxd5 {[%clk 0:02:42]}  exd5 {[%clk 0:02:08]} 12. Bf3 {[%clk 0:02:25]}  Rd8 {[%clk 0:01:36]} 13. Nxc6 {[%clk 0:02:02]}  bxc6 {[%clk 0:01:22]} 14. Qc2 {[%clk 0:01:51]}  a5 {[%clk 0:00:49]} 15. Na4 {[%clk 0:01:25]}  Qb8 {[%clk 0:00:42]} 16. bxa5 {[%clk 0:01:14]}  Rxa5 {[%clk 0:00:29]} 17. Bd2 {[%clk 0:01:13]}  Ra7 {[%clk 0:00:16]} 18. Rfb1 {[%clk 0:01:06]}  Qc7 {[%clk 0:00:16]} 19. Bb4 {[%clk 0:00:50]}  Bg4 {[%clk 0:00:12]} 20. Bxe7 {[%clk 0:00:36]}  Qxe7 {[%clk 0:00:13]} 21. Bxg4 {[%clk 0:00:30]}  Nxg4 {[%clk 0:00:14]} 22. h3 {[%clk 0:00:29]}  Ne5 {[%clk 0:00:10]} 23. Nb6 {[%clk 0:00:27]}  h5 {[%clk 0:00:08]} 24. a4 {[%clk 0:00:26]}  c5 {[%clk 0:00:05]} 25. a5 {[%clk 0:00:23]}  d4 {[%clk 0:00:05]} 26. exd4 {[%clk 0:00:22]}  cxd4 {[%clk 0:00:06]} 27. Re1 {[%clk 0:00:08]}  Qd6 {[%clk 0:00:04]} 28. Qe4 {[%clk 0:00:08]}  Ng6 {[%clk 0:00:02]} 29. Nc4 {[%clk 0:00:07]}  Qc5 {[%clk 0:00:02]} 30. Ne5 {[%clk 0:00:07]}  Re7 {[%clk 0:00:02]} 31. f4 {[%clk 0:00:06]}  Nxe5 {[%clk 0:00:01]} 32. fxe5 {[%clk 0:00:06]}  f6 {[%clk 0:00:02]} 33. Qg6 {[%clk 0:00:02]}  d3+ {[%clk 0:00:02]} 34. Kh1 {[%clk 0:00:01]}  Rxe5 {[%clk 0:00:03]} 35. Red1 {[%clk 0:00:00]}  d2 {[%clk 0:00:02]} 0-1


[Site "https://www.chess.com"]